fUSD/lending_fUSD_20250617
["ID","MTS","AMOUNT","RATE_DAILY","PERIOD"]
[366216245,1750126256607,-490.0,0.00016944,2]
[366216246,1750126256617,-1136.19,0.00016944,2]
[366216247,1750126256627,-490.0,0.00016944,2]
[366216248,1750126256636,-490.0,0.00016944,2]
[366216249,1750126256646,-490.0,0.00016944,2]
[366216250,1750126256656,-151.0,0.00016944,2]
[366216251,1750126256666,-815.2,0.00016944,2]
[366216252,1750126256680,-490.0,0.00016944,2]
[366216253,1750126256689,-151.036286,0.00016944,2]
[366216254,1750126256699,-1721.55,0.00016944,2]
[366216255,1750126256709,-168.71347632,0.00016944,2]
[366216256,1750126256718,-151.036286,0.00016944,2]
[366216257,1750126256728,-490.0,0.00016944,2]
[366216258,1750126256738,-1494.39,0.00016944,2]
[366216259,1750126256749,-151.0,0.00016944,2]
[366216260,1750126256759,-490.0,0.00016944,2]
[366216261,1750126256769,-772.76,0.00016944,2]
[366216262,1750126256779,-490.0,0.00016944,2]
[366216263,1750126256789,-490.0,0.00016944,2]
[366216264,1750126256799,-151.0,0.00016944,2]
[366216265,1750126256809,-490.0,0.00016944,2]
[366216266,1750126256819,-1348.2,0.00016944,2]
[366216267,1750126256829,-263.46164497,0.00016944,2]
[366216268,1750126256839,-490.0,0.00016944,2]
[366216269,1750126256848,-490.0,0.00016944,2]
[366216270,1750126256858,-490.0,0.00016944,2]
[366216271,1750126256869,-386.76917925,0.00016944,2]
[366216272,1750126256879,-490.0,0.00016944,2]
[366216273,1750126256889,-392.74733217,0.00016944,2]
[366216274,1750126256899,-490.0,0.00016944,2]
[366216275,1750126256908,-490.0,0.00016944,2]
[366216276,1750126256919,-618.47497555,0.00016944,2]
[366216277,1750126256929,-1717.74,0.00016944,2]
[366216278,1750126256939,-490.0,0.00016944,2]
[366216279,1750126256949,-490.0,0.00016944,2]
[366216280,1750126256958,-490.0,0.00016944,2]
[366216281,1750126256968,-1577.01,0.00016944,2]
[366216282,1750126256978,-490.0,0.00016944,2]
[366216283,1750126256988,-252.96961437,0.00016944,2]
[366216284,1750126256999,-517.73841977,0.00016944,2]
[366216285,1750126257009,-421.51080517,0.00016944,2]
[366216286,1750126257019,-490.0,0.00016944,2]
[366216287,1750126257030,-1000.0,0.00016944,2]
[366216288,1750126257040,-490.0,0.00016944,2]
[366216289,1750126257050,-490.0,0.00016944,2]
[366216290,1750126257060,-490.0,0.00016944,2]
[366216291,1750126257070,-151.0,0.00016944,2]
[366216292,1750126257080,-426.61518299,0.00016944,2]
[366216293,1750126257090,-611.28,0.00016944,2]
[366216294,1750126257100,-490.0,0.00016944,2]
[366216295,1750126257110,-490.0,0.00016944,2]
[366216296,1750126257120,-490.0,0.00016944,2]
[366216297,1750126257130,-490.0,0.00016944,2]
[366216298,1750126257140,-490.0,0.00016944,2]
[366216299,1750126257151,-3136.98,0.00016944,2]
[366216300,1750126257161,-490.0,0.00016944,2]
[366216301,1750126257171,-490.0,0.00016944,2]
[366216302,1750126257181,-375.31414825,0.00016944,2]
[366216303,1750126257191,-490.0,0.00016944,2]
[366216304,1750126257201,-345.68422728,0.00016944,2]
[366216305,1750126257210,-490.0,0.00016944,2]
[366216306,1750126257220,-392.98913832,0.00016944,2]
[366216307,1750126257230,-979.85,0.00016944,2]
[366216308,1750126257240,-151.0,0.00016944,2]
[366216309,1750126257250,-3679.85,0.00016944,2]
[366216310,1750126257262,-490.0,0.00016944,2]
[366216311,1750126257272,-490.0,0.00016944,2]
[366216312,1750126257282,-490.0,0.00016944,2]
[366216313,1750126257291,-266.48399358,0.00016944,2]
[366216314,1750126257301,-151.0,0.00016944,2]
[366216315,1750126257312,-490.0,0.00016944,2]
[366216316,1750126257322,-151.0,0.00016944,2]
[366216317,1750126257332,-522.84,0.00016944,2]
[366216318,1750126257342,-490.0,0.00016944,2]
[366216319,1750126257352,-490.0,0.00016944,2]
[366216320,1750126257363,-736.96,0.00016944,2]
[366216321,1750126257373,-490.0,0.00016944,2]
[366216322,1750126257384,-490.0,0.00016944,2]
[366216323,1750126257393,-490.0,0.00016944,2]
[366216324,1750126257403,-268.512357,0.00016944,2]
[366216325,1750126257413,-151.0,0.00016944,2]
[366216326,1750126257424,-490.0,0.00016944,2]
[366216327,1750126257434,-268.512357,0.00016944,2]
[366216328,1750126257444,-1884.72,0.00016944,2]
[366216329,1750126257454,-490.0,0.00016944,2]
[366216330,1750126257464,-490.0,0.00016944,2]
[366216331,1750126257474,-490.0,0.00016944,2]
[366216332,1750126257484,-783.09,0.00016944,2]
[366216333,1750126257494,-490.0,0.00016944,2]
[366216334,1750126257504,-490.0,0.00016944,2]
[366216335,1750126257515,-427.217048,0.00016944,2]
[366216336,1750126257524,-490.0,0.00016944,2]
[366216337,1750126257534,-476.37148234,0.00016944,2]
[366216338,1750126257543,-490.0,0.00016944,2]
[366216339,1750126257553,-428.51439226,0.00016944,2]
[366216340,1750126257562,-681.221422,0.00016944,2]
[366216341,1750126257572,-490.0,0.00016944,2]
[366216342,1750126257581,-498.80006269,0.00016944,2]
[366216343,1750126257590,-427.217048,0.00016944,2]
[366216344,1750126257600,-471.485839,0.00016944,2]
[366216345,1750126257609,-490.0,0.00016944,2]
[366216346,1750126257619,-494.22393405,0.00016944,2]
[366216347,1750126257628,-490.0,0.00016944,2]
[366216348,1750126257639,-681.221422,0.00016944,2]
[366216349,1750126257648,-490.0,0.00016944,2]
[366216350,1750126257658,-490.0,0.00016944,2]
[366216351,1750126257668,-490.0,0.00016944,2]
[366216352,1750126257681,-480.0,0.00016944,2]
[366216353,1750126257691,-490.0,0.00016944,2]
[366216354,1750126257700,-151.0,0.00016944,2]
[366216355,1750126257711,-303.05239751,0.00016944,2]
[366216356,1750126257721,-490.0,0.00016944,2]
[366216357,1750126257731,-490.0,0.00016944,2]
[366216358,1750126257740,-490.0,0.00016944,2]
[366216359,1750126257751,-490.0,0.00016944,2]
[366216360,1750126257762,-532.53,0.00016944,2]
[366216361,1750126257773,-470.4045248,0.00016944,2]
[366216362,1750126257783,-551.27,0.00016944,2]
[366216363,1750126257793,-490.0,0.00016944,2]
[366216364,1750126257809,-490.0,0.00016944,2]
[366216365,1750126257819,-490.0,0.00016944,2]
[366216366,1750126257828,-490.0,0.00016944,2]
[366216367,1750126257839,-327.43147237,0.00016944,2]
[366216368,1750126257850,-4799.83,0.00016944,2]
[366216369,1750126257860,-189.00176338,0.00016944,2]
[366216370,1750126257871,-490.0,0.00016944,2]
[366216371,1750126257881,-1602.97,0.00016944,2]
[366216372,1750126257892,-151.0,0.00016944,2]
[366216373,1750126257902,-467.47497531,0.00016944,2]
[366216374,1750126257912,-247.79170531,0.00016944,2]
[366216375,1750126257923,-490.0,0.00016944,2]
[366216376,1750126257933,-490.0,0.00016944,2]
[366216377,1750126257944,-349.78600513,0.00016944,2]
[366216378,1750126257955,-743.87,0.00016944,2]
[366216379,1750126257965,-490.0,0.00016944,2]
[366216380,1750126257975,-151.0,0.00016944,2]
[366216381,1750126257985,-153.050968,0.00016944,2]
[366216382,1750126257995,-490.0,0.00016944,2]
[366216383,1750126258006,-490.0,0.00016944,2]
[366216384,1750126258017,-490.0,0.00016944,2]
[366216385,1750126258027,-491.45,0.00016944,2]
[366216386,1750126258037,-421.97102217,0.00016944,2]
[366216387,1750126258047,-490.0,0.00016944,2]
[366216388,1750126258057,-198.56954222,0.00016944,2]
[366216389,1750126258068,-637.74015806,0.00016944,2]
[366216390,1750126258078,-185.69907935,0.00016944,2]
[366216391,1750126258088,-490.0,0.00016944,2]
[366216392,1750126258098,-490.0,0.00016944,2]
[366216393,1750126258108,-490.0,0.00016944,2]
[366216394,1750126258119,-3309.63,0.00016945,2]
[366216395,1750126258129,-2474.9,0.00016945,2]
[366216396,1750126258139,-490.0,0.00016946,2]
[366216397,1750126258149,-490.0,0.00016946,2]
[366216398,1750126258158,-490.0,0.00016946,2]
[366216399,1750126258168,-608.03941836,0.00016946,2]
[366216400,1750126258178,-490.0,0.00016946,2]
[366216401,1750126258188,-490.0,0.00016946,2]
[366216402,1750126258198,-490.0,0.00016946,2]
[366216403,1750126258207,-490.0,0.00016946,2]
[366216404,1750126258218,-490.0,0.00016946,2]
[366216405,1750126258228,-490.0,0.00016946,2]
[366216406,1750126258238,-580.74,0.00016946,2]
[366216407,1750126258255,-490.0,0.00016946,2]
[366216408,1750126258267,-490.0,0.00016946,2]
[366216409,1750126258280,-490.0,0.00016946,2]
[366216410,1750126258291,-490.0,0.00016946,2]
[366216411,1750126258301,-490.0,0.00016946,2]
[366216412,1750126258312,-490.0,0.00016946,2]
[366216413,1750126258323,-490.0,0.00016946,2]
[366216414,1750126258333,-490.0,0.00016946,2]
[366216415,1750126258344,-187.53545,0.00016946,2]
[366216416,1750126258354,-151.0,0.00016946,2]
[366216417,1750126258365,-151.0,0.00016946,2]
[366216418,1750126258376,-151.277236,0.00016946,2]
[366216419,1750126258387,-152.364498,0.00016946,2]
[366216420,1750126258398,-156.913167,0.00016946,2]
[366216421,1750126258408,-151.319331,0.00016946,2]
[366216422,1750126258418,-151.0,0.00016946,2]
[366216423,1750126258429,-151.0,0.00016946,2]
[366216424,1750126258439,-151.0,0.00016946,2]
[366216425,1750126258449,-151.0,0.00016946,2]
[366216426,1750126258459,-1547.514912,0.00016946,2]
[366216427,1750126258469,-151.0,0.00016946,2]
[366216428,1750126258480,-1547.514912,0.00016946,2]
[366216429,1750126258490,-257.38957,0.00016946,2]
[366216430,1750126258500,-151.457581,0.00016946,2]
[366216431,1750126258512,-151.0,0.00016946,2]
[366216432,1750126258523,-151.0,0.00016946,2]
[366216433,1750126258533,-151.0,0.00016946,2]
[366216434,1750126258544,-151.0,0.00016946,2]
[366216435,1750126258554,-270.579631,0.00016946,2]
[366216436,1750126258565,-153.21764,0.00016946,2]
[366216437,1750126258575,-151.989613,0.00016946,2]
[366216438,1750126258585,-151.036286,0.00016946,2]
[366216439,1750126258595,-151.036286,0.00016946,2]
[366216440,1750126258605,-251.246621,0.00016946,2]
[366216441,1750126258616,-251.246621,0.00016946,2]
[366216442,1750126258626,-268.512357,0.00016946,2]
[366216443,1750126258636,-1511.043218,0.00016946,2]
[366216444,1750126258647,-268.512357,0.00016946,2]
[366216445,1750126258656,-1511.043218,0.00016946,2]
[366216446,1750126258667,-151.0,0.00016946,2]
[366216447,1750126258687,-152.18825746,0.00016947,2]
[366216448,1750126258709,-1687.0,0.00016966,2]
[366216449,1750126258719,-500.0,0.00016972,2]
[366216450,1750126258729,-502.04742108,0.00016973,2]
[366216451,1750126258739,-500.0,0.00016973,2]
[366216452,1750126258750,-500.0,0.00016973,2]
[366216453,1750126258761,-500.0,0.00016973,2]
[366216454,1750126258772,-500.0,0.00016973,2]
[366216455,1750126258782,-500.0,0.00016973,2]
[366216456,1750126258792,-500.0,0.00016973,2]
[366216457,1750126258802,-500.0,0.00016973,2]
[366216458,1750126258812,-500.0,0.00016973,2]
[366216459,1750126258822,-500.0,0.00016973,2]
[366216460,1750126258832,-500.0,0.00016973,2]
[366216461,1750126258842,-500.0,0.00016973,2]
[366216462,1750126258851,-500.0,0.00016973,2]
[366216463,1750126258861,-500.0,0.00016973,2]
[366216464,1750126258871,-500.0,0.00016973,2]
[366216465,1750126258882,-500.0,0.00016973,2]
[366216466,1750126258892,-500.0,0.00016973,2]
[366216467,1750126258902,-559.12118164,0.00016973,2]
[366216468,1750126258913,-500.0,0.00016973,2]
[366216469,1750126258922,-500.0,0.00016973,2]
[366216470,1750126258933,-500.0,0.00016973,2]
[366216471,1750126258943,-500.0,0.00016973,2]
[366216472,1750126258953,-500.0,0.00016973,2]
[366216473,1750126258963,-150.0,0.00016984,3]
[366216474,1750126258973,-150.0,0.00016984,3]
[366216475,1750126258984,-205.85618142,0.00016984,3]
[366216476,1750126258995,-200.0,0.00016984,3]
[366216477,1750126259143,-500.0,0.00016984,3]
[366216478,1750126259154,-150.0,0.00016984,3]
[366216479,1750126259164,-150.0,0.00016984,2]
[366216480,1750126259174,-500.0,0.00016984,3]
[366216481,1750126259185,-186.06049532,0.00016984,3]
[366216482,1750126259195,-500.0,0.00016986,2]
[366216483,1750126259205,-500.0,0.00016986,2]
[366216484,1750126259215,-151.0,0.00016986,2]
[366216485,1750126259226,-151.348579,0.00016986,2]
[366216486,1750126259235,-151.0,0.00016986,2]
[366216487,1750126259245,-151.0,0.00016986,2]
[366216488,1750126259255,-151.0,0.00016986,2]
[366216489,1750126259267,-229.48,0.00016986,2]
[366216490,1750126259276,-1958.41,0.00016986,2]
[366216491,1750126259287,-738.31,0.00016986,2]
[366216492,1750126259297,-1763.74,0.00016986,2]
[366216493,1750126259307,-151.0,0.00016986,2]
[366216494,1750126259317,-151.0,0.00016986,2]
[366216495,1750126259327,-427.217048,0.00016986,2]
[366216496,1750126259337,-681.221422,0.00016986,2]
[366216497,1750126259347,-427.217048,0.00016986,2]
[366216498,1750126259356,-681.221422,0.00016986,2]
[366216499,1750126259366,-151.0,0.00016986,2]
[366216500,1750126259377,-151.0,0.00016986,2]
[366216501,1750126259387,-1000.0,0.00016986,3]
[366216502,1750126259396,-1000.0,0.00016986,3]
[366216503,1750126259406,-1000.0,0.00016986,3]
[366216504,1750126259416,-1000.0,0.00016986,3]
[366216505,1750126259426,-1000.0,0.00016986,3]
[366216506,1750126259436,-1000.0,0.00016986,3]
[366216507,1750126259446,-1000.0,0.00016986,3]
[366216508,1750126259455,-1000.0,0.00016986,3]
[366216509,1750126259465,-1000.0,0.00016986,3]
[366216510,1750126259475,-1000.0,0.00016986,3]
[366216511,1750126259484,-1000.0,0.00016986,3]
[366216512,1750126259493,-1000.0,0.00016986,3]
[366216513,1750126259503,-1000.0,0.00016986,3]
[366216514,1750126259517,-1000.0,0.00016986,3]
[366216515,1750126259533,-1000.0,0.00016986,3]
[366216516,1750126259542,-1000.0,0.00016986,3]
[366216517,1750126259552,-1000.0,0.00016986,3]
[366216518,1750126259562,-1000.0,0.00016986,3]
[366216519,1750126259572,-1000.0,0.00016986,3]
[366216520,1750126259582,-1000.0,0.00016986,3]
[366216521,1750126259591,-1000.0,0.00016986,3]
[366216522,1750126259601,-1000.0,0.00016986,3]
[366216523,1750126259611,-1000.0,0.00016986,3]
[366216524,1750126259621,-1000.0,0.00016986,3]
[366216525,1750126259631,-1000.0,0.00016986,3]
[366216526,1750126259641,-1000.0,0.00016986,3]
[366216527,1750126259651,-1000.0,0.00016986,3]
[366216528,1750126259660,-1000.0,0.00016986,3]
[366216529,1750126259671,-1000.0,0.00016986,3]
[366216530,1750126259682,-1000.0,0.00016986,3]
[366216531,1750126259691,-1000.0,0.00016986,3]
[366216532,1750126259701,-1000.0,0.00016986,3]
[366216533,1750126259711,-1000.0,0.00016986,3]
[366216534,1750126259721,-1000.0,0.00016986,3]
[366216535,1750126259731,-1000.0,0.00016986,3]
[366216536,1750126259741,-1000.0,0.00016986,3]
[366216537,1750126259752,-1000.0,0.00016986,3]
[366216538,1750126259763,-1000.0,0.00016986,3]
[366216539,1750126259773,-1000.0,0.00016986,3]
[366216540,1750126259783,-1000.0,0.00016986,3]
[366216541,1750126259793,-1000.0,0.00016986,3]
[366216542,1750126259802,-1000.0,0.00016986,3]
[366216543,1750126259812,-1000.0,0.00016986,3]
[366216544,1750126259821,-1000.0,0.00016986,3]
[366216545,1750126259831,-1000.0,0.00016986,3]
[366216546,1750126259841,-1000.0,0.00016986,3]
[366216547,1750126259850,-1000.0,0.00016986,3]
[366216548,1750126259860,-1000.0,0.00016986,3]
[366216549,1750126259869,-1000.0,0.00016986,3]
[366216550,1750126259879,-1000.0,0.00016986,3]
[366216551,1750126259888,-1000.0,0.00016986,3]
[366216552,1750126259898,-1000.0,0.00016986,3]
[366216553,1750126259907,-502.0,0.00016986,3]
[366216554,1750126259917,-833.87704394,0.00016986,3]
[366216555,1750126259927,-38421.09,0.0001699,2]
[366216556,1750126259936,-151.0,0.0001699,2]
[366216557,1750126259946,-151.0,0.0001699,2]
[366216558,1750126259955,-151.0,0.0001699,2]
[366216559,1750126259964,-151.0,0.0001699,2]
[366216560,1750126259973,-154.573596,0.0001699,2]
[366216561,1750126259981,-151.0,0.0001699,2]
[366216562,1750126259994,-619.08694292,0.00016992,2]
[366216563,1750126260003,-490.0,0.00016992,2]
[366216564,1750126260013,-490.0,0.00016992,2]
[366216565,1750126260023,-490.0,0.00016992,2]
[366216566,1750126260033,-490.0,0.00016992,2]
[366216567,1750126260043,-490.0,0.00016992,2]
[366216568,1750126260053,-490.0,0.00016992,2]
[366216569,1750126260064,-490.0,0.00016992,2]
[366216570,1750126260074,-490.0,0.00016992,2]
[366216571,1750126260083,-490.0,0.00016992,2]
[366216572,1750126260093,-2126.74,0.00016992,2]
[366216573,1750126260103,-490.0,0.00016992,2]
[366216574,1750126260113,-603.98,0.00016992,2]
[366216575,1750126260122,-1516.17,0.00016992,2]
[366216576,1750126260132,-169.93455211,0.00016992,2]
[366216577,1750126260142,-490.0,0.00016992,2]
[366216578,1750126260152,-490.0,0.00016992,2]
[366216579,1750126260163,-1461.93,0.00016992,2]
[366216580,1750126260173,-253.00141557,0.00016992,2]
[366216581,1750126260184,-186.5267,0.00016992,2]
[366216582,1750126260195,-490.0,0.00016992,2]
[366216583,1750126260205,-490.0,0.00016992,2]
[366216584,1750126260215,-490.0,0.00016992,2]
[366216585,1750126260226,-490.0,0.00016992,2]
[366216586,1750126260236,-902.69,0.00016992,2]
[366216587,1750126260247,-490.0,0.00016992,2]
[366216588,1750126260258,-603.84074171,0.00016992,2]
[366216589,1750126260270,-490.0,0.00016992,2]
[366216590,1750126260280,-490.0,0.00016992,2]
[366216591,1750126260291,-3309.63,0.00016998,2]
[366216592,1750126260301,-500.0,0.00016998,2]
[366216593,1750126260312,-218.01087075,0.00016999,2]
[366216594,1750126260322,-666.0,0.00016999,2]
[366216595,1750126260332,-29022.8679725,0.00016999,2]
[366216596,1750126260342,-305.37794088,0.00016999,2]
[366216597,1750126260351,-151.093106,0.00016999,2]
[366216598,1750126260361,-268.537194,0.00016999,2]
[366216599,1750126260371,-151.0,0.00016999,2]
[366216600,1750126260380,-300.0,0.00016999,2]
[366216601,1750126260390,-152.078113,0.00016999,2]
[366216602,1750126260400,-151.0,0.00016999,2]
[366216603,1750126260410,-151.0,0.00016999,2]
[366216604,1750126260419,-151.0,0.00016999,2]
[366216605,1750126260429,-151.0,0.00016999,2]
[366216606,1750126260439,-164.255183,0.00016999,2]
[366216607,1750126260448,-542.056655,0.00016999,2]
[366216608,1750126260457,-151.0,0.00016999,2]
[366216609,1750126260466,-542.056655,0.00016999,2]
[366216610,1750126260476,-151.0,0.00016999,2]
[366216611,1750126260486,-151.0,0.00016999,2]
[366216612,1750126260495,-151.0,0.00016999,2]
[366216613,1750126260505,-151.0,0.00016999,2]
[366216614,1750126260516,-500.0,0.00016999,2]
[366216615,1750126260526,-503.14173277,0.00016999,2]
[366216616,1750126260535,-151.0,0.00016999,2]
[366216617,1750126260545,-151.0,0.00016999,2]
[366216618,1750126260554,-152.001374,0.00016999,2]
[366216619,1750126260564,-459.53347289,0.00016999,2]
[366216620,1750126260574,-151.197607,0.00016999,2]
[366216621,1750126260584,-151.0,0.00016999,2]
[366216622,1750126260594,-152.387844,0.00016999,2]
[366216623,1750126260604,-1547.514912,0.00016999,2]
[366216624,1750126260613,-151.0,0.00016999,2]
[366216625,1750126260624,-1547.514912,0.00016999,2]
[366216626,1750126260633,-151.0,0.00016999,2]
[366216627,1750126260643,-151.0,0.00016999,2]
[366216628,1750126260653,-3309.63,0.00016999,2]
[366216629,1750126260662,-3309.63,0.00016999,2]
[366216630,1750126260675,-3309.63,0.00016999,2]
[366216631,1750126260687,-3309.63,0.00016999,2]
[366216632,1750126260696,-3309.63,0.00016999,2]
[366216633,1750126260706,-3309.63,0.00016999,2]
[366216634,1750126260717,-3309.63,0.00016999,2]
[366216635,1750126260727,-3309.63,0.00016999,2]
[366216636,1750126260737,-3309.63,0.00016999,2]
[366216637,1750126260746,-3309.63,0.00016999,2]
[366216638,1750126260758,-3309.63,0.00016999,2]
[366216639,1750126260769,-3309.63,0.00016999,2]
[366216640,1750126260780,-3309.63,0.00016999,2]
[366216641,1750126260789,-3309.63,0.00016999,2]
[366216642,1750126260799,-3309.63,0.00016999,2]
[366216643,1750126260809,-3309.63,0.00016999,2]
[366216644,1750126260819,-3309.63,0.00016999,2]
[366216645,1750126260828,-3309.72983066,0.00016999,2]
[366216646,1750126260839,-151.0,0.00016999,2]
[366216647,1750126260849,-151.0,0.00016999,2]
[366216648,1750126260859,-1958.41,0.00016999,2]
[366216649,1750126260869,-1958.41,0.00016999,2]
[366216650,1750126260879,-1958.41,0.00016999,2]
[366216651,1750126260889,-1958.41,0.00016999,2]
[366216652,1750126260898,-1958.41,0.00016999,2]
[366216653,1750126260907,-1958.41,0.00016999,2]
[366216654,1750126260917,-1958.41,0.00016999,2]
[366216655,1750126260926,-1958.41,0.00016999,2]
[366216656,1750126260935,-1958.41,0.00016999,2]
[366216657,1750126260945,-1958.41,0.00016999,2]
[366216658,1750126260954,-1958.41,0.00016999,2]
[366216659,1750126260965,-1958.41,0.00016999,2]
[366216660,1750126260974,-1958.41,0.00016999,2]
[366216661,1750126260984,-1958.41,0.00016999,2]
[366216662,1750126260994,-1958.41,0.00016999,2]
[366216663,1750126261004,-1958.41,0.00016999,2]
[366216664,1750126261016,-1958.41,0.00016999,2]
[366216665,1750126261026,-1958.41,0.00016999,2]
[366216666,1750126261035,-1958.51083784,0.00016999,2]
[366216667,1750126261045,-151.036286,0.00016999,2]
[366216668,1750126261056,-738.31,0.00016999,2]
[366216669,1750126261065,-738.31,0.00016999,2]
[366216670,1750126261075,-738.31,0.00016999,2]
[366216671,1750126261084,-738.31,0.00016999,2]
[366216672,1750126261094,-738.31,0.00016999,2]
[366216673,1750126261105,-738.31,0.00016999,2]
[366216674,1750126261115,-738.31,0.00016999,2]
[366216675,1750126261125,-738.31,0.00016999,2]
[366216676,1750126261134,-738.31,0.00016999,2]
[366216677,1750126261144,-738.31,0.00016999,2]
[366216678,1750126261154,-738.31,0.00016999,2]
[366216679,1750126261164,-738.31,0.00016999,2]
[366216680,1750126261174,-738.31,0.00016999,2]
[366216681,1750126261184,-738.31,0.00016999,2]
[366216682,1750126261193,-738.31,0.00016999,2]
[366216683,1750126261203,-738.31,0.00016999,2]
[366216684,1750126261213,-151.036286,0.00016999,2]
[366216685,1750126261223,-738.31,0.00016999,2]
[366216686,1750126261232,-738.31,0.00016999,2]
[366216687,1750126261241,-738.47515207,0.00016999,2]
[366216688,1750126261251,-151.0,0.00016999,2]
[366216689,1750126261262,-151.0,0.00016999,2]
[366216690,1750126261271,-251.246621,0.00016999,2]
[366216691,1750126261282,-251.246621,0.00016999,2]
[366216692,1750126261292,-2474.9,0.00016999,2]
[366216693,1750126261303,-2474.9,0.00016999,2]
[366216694,1750126261312,-2474.9,0.00016999,2]
[366216695,1750126261322,-2474.9,0.00016999,2]
[366216696,1750126261332,-2474.9,0.00016999,2]
[366216697,1750126261342,-2474.9,0.00016999,2]
[366216698,1750126261351,-2474.9,0.00016999,2]
[366216699,1750126261361,-2474.9,0.00016999,2]
[366216700,1750126261370,-2474.9,0.00016999,2]
[366216701,1750126261379,-2474.9,0.00016999,2]
[366216702,1750126261389,-2474.9,0.00016999,2]
[366216703,1750126261398,-2474.9,0.00016999,2]
[366216704,1750126261407,-2474.9,0.00016999,2]
[366216705,1750126261417,-2474.9,0.00016999,2]
[366216706,1750126261428,-2474.9,0.00016999,2]
[366216707,1750126261438,-2474.9,0.00016999,2]
[366216708,1750126261448,-2474.9,0.00016999,2]
[366216709,1750126261458,-2474.92425001,0.00016999,2]
[366216710,1750126261467,-1763.74,0.00016999,2]
[366216711,1750126261478,-1763.74,0.00016999,2]
[366216712,1750126261489,-1763.74,0.00016999,2]
[366216713,1750126261498,-1763.74,0.00016999,2]
[366216714,1750126261508,-1763.74,0.00016999,2]
[366216715,1750126261519,-1763.74,0.00016999,2]
[366216716,1750126261529,-1763.74,0.00016999,2]
[366216717,1750126261540,-1763.74,0.00016999,2]
[366216718,1750126261549,-1763.74,0.00016999,2]
[366216719,1750126261560,-1763.74,0.00016999,2]
[366216720,1750126261570,-1763.74,0.00016999,2]
[366216721,1750126261580,-1763.74,0.00016999,2]
[366216722,1750126261590,-1763.74,0.00016999,2]
[366216723,1750126261600,-231.728889,0.00016999,2]
[366216724,1750126261610,-1763.74,0.00016999,2]
[366216725,1750126261619,-1763.74,0.00016999,2]
[366216726,1750126261629,-1763.74,0.00016999,2]
[366216727,1750126261639,-1763.74,0.00016999,2]
[366216728,1750126261648,-1763.74,0.00016999,2]
[366216729,1750126261657,-1763.75255462,0.00016999,2]
[366216730,1750126261668,-151.0,0.00016999,2]
[366216731,1750126261682,-151.0,0.00016999,2]
[366216732,1750126261691,-151.0,0.00016999,2]
[366216733,1750126261701,-500.0,0.00016999,2]
[366216734,1750126261711,-500.0,0.00016999,2]
[366216735,1750126261723,-500.0,0.00016999,2]
[366216736,1750126261732,-500.0,0.00016999,2]
[366216737,1750126261742,-500.0,0.00016999,2]
[366216738,1750126261754,-500.0,0.00016999,2]
[366216739,1750126261765,-500.0,0.00016999,2]
[366216740,1750126261776,-641.57069774,0.00016999,2]
[366216741,1750126261786,-268.512357,0.00016999,2]
[366216742,1750126261796,-1511.043218,0.00016999,2]
[366216743,1750126261807,-152.673189,0.00016999,2]
[366216744,1750126261816,-268.512357,0.00016999,2]